lending/lending_fUSD_20241012
["ID","MTS","AMOUNT","RATE_DAILY","PERIOD"]
[340174035,1728762638938,-864.07,0.000109,2]
[340174036,1728762638947,-365.51,0.000109,2]
[340174037,1728762638957,-2000.0,0.000109,2]
[340174038,1728762638966,-200.0,0.000109,2]
[340174039,1728762638976,-478.07582458,0.000109,2]
[340174040,1728762638985,-2000.0,0.000109,2]
[340174041,1728762638996,-200.0,0.000109,2]
[340174042,1728762639005,-500.0,0.00010903,2]
[340174043,1728762639014,-500.0,0.00010912,2]
[340174044,1728762639023,-1432.76,0.00010912,2]
[340174045,1728762639033,-500.0,0.00010921,2]
[340174046,1728762639043,-500.0,0.0001093,2]
[340174047,1728762639053,-168.017,0.00010937,2]
[340174048,1728762639065,-500.0,0.00010938,2]
[340174049,1728762639074,-1000.0,0.00010945,2]
[340174050,1728762639083,-1000.0,0.00010945,2]
[340174051,1728762639092,-1000.0,0.00010945,2]
[340174052,1728762639102,-447.255,0.00010945,2]
[340174053,1728762639111,-500.0,0.00010947,2]
[340174054,1728762639121,-500.0,0.00010956,2]
[340174055,1728762639130,-236.63,0.00010959,2]
[340174056,1728762639139,-154.85,0.00010959,2]
[340174057,1728762639149,-162.82,0.00010959,2]
[340174058,1728762639159,-574.65,0.00010959,2]
[340174059,1728762639170,-161.61,0.00010959,2]
[340174060,1728762639179,-250.0,0.00010959,2]
[340174061,1728762639189,-500.0,0.00010965,2]
[340174062,1728762639198,-500.0,0.00010973,2]
[340174063,1728762639207,-500.0,0.00010974,2]
[340174064,1728762639218,-1244.0,0.00010979,2]
[340174065,1728762639227,-150.0,0.00010979,2]
[340174066,1728762639237,-614.216,0.00010979,2]
[340174067,1728762639246,-500.0,0.00010982,2]
[340174068,1728762639257,-150.0,0.00010986,2]
[340174069,1728762639270,-31893.57471598,0.0001099,2]
[340174070,1728762639279,-500.0,0.00010991,2]
[340174071,1728762639290,-956.65353789,0.00010995,2]
[340174072,1728762639299,-178.1539332,0.00010995,2]
[340174073,1728762639310,-4345.0377319,0.00010995,2]
[340174074,1728762639320,-500.0,0.00010999,2]
[340174075,1728762639329,-500.0,0.00010999,2]
[340174076,1728762639339,-500.0,0.00010999,2]
[340174077,1728762639348,-573.75744388,0.00010999,2]
[340174078,1728762639358,-536.0,0.00011,2]
[340174079,1728762639368,-185490.44056941,0.00011,2]
[340174080,1728762639378,-15014.31616867,0.00011,2]
[340174081,1728762639391,-61596.1841733,0.00011,2]
[340174082,1728762639402,-1201.07485359,0.00011,2]
[340174089,1728762640218,-2037.33,0.00011,2]
[340174090,1728762640275,-4040.214,0.00011,2]
[340174091,1728762640435,-4245.82714382,0.00011,2]
[340174250,1728762643340,-700.0,0.00011,2]
[340174251,1728762643396,-55214.30685014,0.00011,2]
[340174253,1728762646256,-1017.37280722,0.0001078,2]
[340174254,1728762646311,-66.942386,0.0001078,2]
[340174255,1728762646321,-95933.05760737,0.00011,2]
[340174256,1728762646420,-2947.80459859,0.00011,2]
[340174257,1728762646432,-282.348,0.00011,2]
[340174262,1728762812197,159.24,0.00010127,2]
[340174263,1728762904195,250.0,0.00010098,2]
[340174280,1728763034020,502.12,8.219e-05,2]
[340174281,1728763095464,248.12,0.00010054,2]
[340174282,1728763260403,800.0,0.0001003,2]
[340174283,1728763423680,250.0,0.00010001,2]
[340174284,1728763601945,500.66,8.219e-05,2]
[340174285,1728763602487,180.55,0.00010031,2]
[340174377,1728763820755,360.0,0.0001004,2]
[340174395,1728763832625,-500.66,0.00010477,2]
[340174397,1728763832635,-933.71830572,0.0001078,2]
[340174399,1728763832645,-544.45077348,0.000108,2]
[340174421,1728763838706,-484.69002652,0.000108,2]
[340174422,1728763838715,-178.51122102,0.00010833,2]
[340174423,1728763838762,-321.48877898,0.00010833,2]
[340174424,1728763838772,-500.0,0.00010842,2]
[340174425,1728763838781,-249.93122102,0.0001085,2]
[340174426,1728763838792,-250.06877898,0.0001085,2]
[340174427,1728763838801,-500.0,0.00010859,2]
[340174428,1728763838811,-500.0,0.00010868,2]
[340174429,1728763838821,-219.6,0.00010876,2]
[340174430,1728763838830,-300.0,0.00010876,2]
[340174431,1728763838840,-500.0,0.00010877,2]
[340174432,1728763838850,-3566.15,0.00010877,2]
[340174433,1728763838859,-500.0,0.00010886,2]
[340174434,1728763838868,-150.0,0.00010892,2]
[340174435,1728763838879,-153.21512411,0.000109,2]
[340174436,1728763838888,-166.75,0.00010959,2]
[340174437,1728763838898,-511.18,0.00010959,2]
[340174438,1728763838908,-224.79,0.00010959,2]
[340174440,1728763838917,-250.0,0.00010959,2]
[340174441,1728763838927,-168.017,0.00010959,2]
[340174442,1728763838936,-1244.0,0.00010989,2]
[340174443,1728763838948,-625.376134,0.00010994,2]
[340174444,1728763838957,-2805.85296291,0.00010994,2]
[340174450,1728763840340,-323.888006,0.00010994,2]
[340174451,1728763840394,-987.60052339,0.00010994,2]
[340174452,1728763840404,-166.80648,0.00010997,2]
[340174453,1728763840413,-286.17813824,0.00010999,2]
[340174454,1728763840423,-975.14849839,0.00010999,2]
[340174455,1728763840432,-596.0,0.00011,2]
[340174456,1728763840441,-90693.68029036,0.00011,2]
[340174457,1728763840453,-39297.84406584,0.00011,2]
[340174458,1728763840654,-46174.72419318,0.00011,2]
[340174459,1728763840664,-717874.21408619,0.00011,2]
[340174460,1728763840706,-495.6028,0.00011,2]
[340174510,1728763843429,-183592.01566005,0.00011,2]
[340174512,1728763843587,-2384.1293918,0.00011,2]
[340174531,1728763846474,-533.0,0.00011,2]
[340174532,1728763846484,-707.11888,0.00011,2]
[340174534,1728764292375,494.39,8.553e-05,2]
[340174535,1728764527496,250.0,0.00010178,2]
[340174536,1728764721398,198.49,0.00010198,2]
[340174563,1728764914387,489.94,8.281e-05,2]
[340174592,1728764977820,288.0,0.00010185,2]
[340174604,1728765023491,500.0,0.00010178,2]
[340174605,1728765023832,500.0,0.00010178,2]
[340174606,1728765024147,500.0,0.00010178,2]
[340174607,1728765024489,500.0,0.00010178,2]
[340174608,1728765024846,868.0,0.00010178,2]
[340174634,1728765031451,-337.01913656,0.00010468,2]
[340174651,1728765031616,-374.98086344,0.00010468,2]
[340174652,1728765031626,-192.81,0.00010488,2]
[340174653,1728765031636,-489.94,0.00010545,2]
[340174654,1728765031646,-1505.63997607,0.0001088,2]
[340174682,1728765037554,-5963.79841379,0.0001088,2]
[340174683,1728765037823,-6169.32408946,0.0001088,2]
[340174684,1728765037833,-150.0,0.00010899,2]
[340174685,1728765037843,-337.0191,0.000109,2]
[340174686,1728765037853,-589.6832,0.000109,2]
[340174687,1728765037862,-2879.25940128,0.000109,2]
[340174688,1728765037872,-156.83,0.00010959,2]
[340174689,1728765037881,-408.94,0.00010959,2]
[340174690,1728765037893,-250.0,0.00010959,2]
[340174691,1728765037903,-150.0,0.00010989,2]
[340174692,1728765037913,-3885.41429702,0.00010995,2]
[340174701,1728765039712,-2222.04408421,0.00010995,2]
[340174861,1728765042660,-838.42354595,0.00010995,2]
[340174862,1728765042672,-1153.46936022,0.00010995,2]
[340174863,1728765042682,-975.14849838,0.00010999,2]
[340174864,1728765042692,-168.017,0.00010999,2]
[340174865,1728765042701,-500.0,0.00010999,2]
[340174866,1728765042710,-500.0,0.00010999,2]
[340174867,1728765042720,-175.12790519,0.00010999,2]
[340174868,1728765042730,-500.0,0.00010999,2]
[340174869,1728765042739,-8620.7882362,0.00011,2]
[340174876,1728765045586,-8754.12078569,0.00011,2]
[340174877,1728765045691,-1897.456752,0.00011,2]
[340174963,1728765442986,566.77,8.322e-05,2]
[340174964,1728765448379,181.21,0.00010203,2]
[340174965,1728765449475,500.0,0.00010203,2]
[340174966,1728765483422,267.18,0.00010203,2]
[340174967,1728765542232,769.6,0.00010203,2]
[340174968,1728765572034,250.0,0.00010203,2]
[340174969,1728765626150,418.92,0.00010185,2]
[340174970,1728765906082,250.0,0.00010188,2]
[340174971,1728765936413,684.99,0.00010222,2]
[340174973,1728766002398,200.0,0.00010231,2]
[340174977,1728766036014,538.43,8.567e-05,2]
[340174978,1728766039581,384.32,0.00010217,2]
[340174990,1728766083710,250.0,0.00010217,2]
[340174993,1728766231634,-359.1750625,0.00010303,2]
[340174994,1728766231647,-566.4249375,0.00010303,2]
[340174995,1728766231658,-450.0,0.00010482,2]
[340174996,1728766231667,-538.43,0.00010831,2]
[340174997,1728766231677,-637.0986,0.000109,2]
[340174998,1728766231687,-426.8603,0.000109,2]
[340174999,1728766231698,-364.19271214,0.000109,2]
[340175000,1728766231708,-8593.24593012,0.000109,2]
[340175001,1728766231720,-1579.69576953,0.000109,2]
[340175002,1728766231742,-161.61,0.00010959,2]
[340175003,1728766231751,-195.94576048,0.00010959,2]
[340175004,1728766231763,-131.20423952,0.00010959,2]
[340175005,1728766231774,-166.75,0.00010959,2]
[340175006,1728766231783,-150.0,0.00010989,2]
[340175007,1728766231793,-150.0,0.00010994,2]
[340175008,1728766231803,-168.01763507,0.00010995,2]
[340175009,1728766231813,-46.42165878,0.00010995,2]
[340175010,1728766231824,-8071.27131002,0.00010995,2]
[340175011,1728766231834,-20620.6004428,0.00011,2]
[340175012,1728766231850,-591.14716184,0.00011,2]
[340175013,1728766231866,-277.5783648,0.00011,2]
[340175027,1728766237686,-762.66851163,0.00011,2]
[340175030,1728766237953,-5980.52168403,0.00011,2]
[340175050,1728766239711,-371.32,0.00011,2]
[340175051,1728766239763,-901.97564511,0.00011,2]
[340175052,1728766239774,-1305.1161,0.00011,2]
[340175053,1728766239871,-489.91246413,0.00011,2]
[340175108,1728766242825,-3616.74756407,0.00011,2]
[340175109,1728766242851,-658.59791523,0.00011,2]
[340175116,1728766245620,-393.6201291,0.00011,2]
[340175117,1728766245675,-77709.40000004,0.00011,2]
[340175118,1728766245730,-2194.15517873,0.00011,2]
[340175119,1728766245741,-5062.62290345,0.00011,2]
[340175120,1728766245839,-5999.99999953,0.00011,2]
[340175123,1728766287341,10205.0,0.000101,5]
[340175125,1728766551012,503.82,8.571e-05,2]
[340175126,1728766587760,214.9,0.00010203,2]
[340175127,1728766594932,692.54,0.00010203,2]
[340175128,1728766610911,250.0,0.00010203,2]
[340175129,1728766730833,200.0,0.00010183,2]
[340175130,1728766753901,164.22,0.00010203,2]
[340175131,1728766837715,150.0,0.00010185,2]
[340175132,1728766996408,250.0,0.00010142,2]
[340175133,1728767021757,3827.77,0.00010224,2]
[340175134,1728767069226,478.62,8.284e-05,2]
[340175135,1728767096833,181.21,0.00010184,2]
[340175136,1728767129526,200.0,0.00010202,2]
[340175147,1728767156475,445.96,0.00010202,2]
[340175148,1728767178241,250.0,0.00010202,2]
[340175149,1728767197584,1090.72,0.00010202,2]
[340175150,1728767197609,19967.01,0.00010202,2]
[340175198,1728767431763,-350.42150355,0.00010302,2]
[340175199,1728767431819,-388.30849645,0.00010302,2]
[340175200,1728767431828,-478.62,0.00010548,2]
[340175201,1728767431838,-205.94,0.00010712,2]
[340175202,1728767431848,-8064.76583024,0.000109,2]
[340175203,1728767431858,-172.07133923,0.000109,2]
[340175204,1728767431869,-3745.89362441,0.000109,2]
[340175205,1728767431878,-150.0,0.00010911,2]
[340175206,1728767431887,-150.0,0.00010958,2]
[340175207,1728767431896,-213.55,0.00010959,2]
[340175208,1728767431907,-2630.85070967,0.00010959,2]
[340175209,1728767431918,-7349.96119563,0.00010959,2]
[340175210,1728767431928,-1831.42117278,0.00010959,2]
[340175211,1728767431939,-3046.55692192,0.00010959,2]
[340175212,1728767431948,-999.99,0.00010959,2]
[340175213,1728767431958,-150.99,0.00010959,2]
[340175214,1728767431967,-156.83,0.00010959,2]
[340175215,1728767431976,-261.72,0.00010959,2]
[340175216,1728767431985,-1347.7123262,0.00010995,2]
[340175217,1728767431995,-146631.05997986,0.00011,2]
[340175218,1728767432004,-36933.14077203,0.00011,2]
[340175219,1728767432015,-3741.43535012,0.00011,2]
[340175220,1728767432026,-300.0,0.00011,2]
[340175221,1728767432041,-856.74448747,0.00011,2]
[340175226,1728767437997,-8278.79976687,0.00011,2]
[340175227,1728767438213,-742.11629914,0.00011,2]
[340175228,1728767438227,-277.0527081,0.00011,2]
[340175229,1728767438270,-3149.89823999,0.00011,2]
[340175360,1728767439884,-1827.62029753,0.00011,2]
[340175362,1728767439895,-1118.027186,0.00011,2]
[340175397,1728767443034,-720.70825157,0.00010959,2]
[340175429,1728767445936,-133.66174843,0.00010959,2]
[340175431,1728767445946,-427.16288063,0.00011,2]
[340175436,1728767445993,-5737.37786493,0.00011,2]
[340175437,1728767446004,-47500.0,0.00011,2]
[340175442,1728767446047,-2116.95788424,0.00011,2]
[340175448,1728767645835,448.53,8.302e-05,2]
[340175449,1728767682155,250.0,0.0001022,2]
[340175450,1728767684307,643.23,0.0001022,2]
[340175451,1728768179278,-183.81,0.00010238,2]
[340175452,1728768242190,443.25,8.276e-05,2]
[340175453,1728768270137,485.41,0.00010176,2]
[340175473,1728768533452,3015.808903,0.00010486,2]
[340175504,1728768631941,-443.25,0.0001054,2]
[340175505,1728768631950,-300.0,0.00010879,2]
[340175506,1728768631960,-941.73777253,0.0001088,2]
[340175507,1728768631975,-291.26630725,0.0001088,2]
[340175508,1728768631989,-876.18272369,0.0001088,2]
[340175509,1728768632004,-1467.87324433,0.0001088,2]
[340175510,1728768632015,-3600.0,0.0001088,2]
[340175511,1728768632044,-604.98,0.0001088,2]
[340175512,1728768632056,-39908.94231975,0.0001088,2]
[340175513,1728768632066,-150.0,0.00010899,2]
[340175514,1728768632075,-21364.53386001,0.000109,2]
[340175515,1728768632084,-1000.0,0.000109,2]
[340175516,1728768632093,-30982.6448,0.000109,2]
[340175517,1728768632102,-488.9524,0.000109,2]
[340175518,1728768632112,-1996.85723594,0.000109,2]
[340175519,1728768632125,-355.13360742,0.000109,2]
[340175520,1728768635151,-6121.39765664,0.000109,2]
[340175521,1728768635161,-179.262,0.00010938,2]
[340175522,1728768635171,-158.9,0.00010959,2]
[340175523,1728768635180,-2000.0,0.00010959,2]
[340175524,1728768635189,-242.31,0.00010959,2]
[340175525,1728768635199,-250.0,0.00010959,2]
[340175526,1728768635208,-150.0,0.00010959,2]
[340175527,1728768635217,-500.0,0.00010973,2]
[340175528,1728768635226,-5169.60687173,0.00010989,2]
[340175538,1728768638063,-549.411646,0.00010989,2]
[340175539,1728768638075,-3365.95,0.00010989,2]
[340175540,1728768638121,-364.55288824,0.00010989,2]
[340175541,1728768638293,-550.46859403,0.00010989,2]
[340175542,1728768638302,-150.0,0.00010989,2]
[340175543,1728768638311,-323.98,0.00010995,2]
[340175544,1728768638320,-207.31515226,0.00010995,2]
[340175562,1728768640122,-330.66484774,0.00010995,2]
[340175563,1728768640134,-776.85,0.00010995,2]
[340175564,1728768640143,-861.1988636,0.00010995,2]
[340175565,1728768640152,-151.0,0.00010995,2]
[340175566,1728768640161,-502.02926599,0.00010995,2]
[340175567,1728768640171,-353.24,0.00010997,2]
[340175568,1728768640180,-166.80647998,0.00010997,2]
[340175569,1728768640189,-444.11819062,0.00010999,2]
[340175570,1728768640198,-527.0,0.00011,2]
[340175571,1728768640206,-6315.15546223,0.00011,2]
[340175572,1728768640218,-129758.49483321,0.00011,2]
[340175573,1728768640227,-176834.19798651,0.00011,2]
[340175574,1728768640238,-598.89869134,0.00011,2]
[340175575,1728768640249,-1058.61244408,0.00011,2]
[340175577,1728768640260,-2529.195,0.00011,2]
[340175579,1728768640271,-6994.89999993,0.00011,2]
[340175582,1728768640281,-300.0,0.00011,2]
[340175598,1728768643241,-1436.24168433,0.00011,2]
[340175599,1728768643254,-548.79774281,0.00011,2]
[340175600,1728768643269,-20464.29,0.00011,2]
[340175601,1728768643280,-562.6023957,0.00011,2]
[340175602,1728768643295,-730.07140233,0.00011,2]
[340175603,1728768643306,-652.62529538,0.00011,2]
[340175604,1728768643349,-8328.38871867,0.00011,2]
[340175605,1728768643360,-4246.81921635,0.00011,2]
[340175606,1728768643371,-942.316296,0.00011,2]
[340175607,1728768643382,-167593.30922061,0.00011,2]
[340175608,1728768643393,-21219.02850396,0.00011,2]
[340175610,1728768644458,7875.08004205,0.00021523,90]
[340175612,1728768645911,-2013.36569373,0.00011,2]
[340175614,1728768645981,-3145.66036694,0.00011,2]
[340175615,1728768645993,-872.82261706,0.00011,2]
[340175616,1728768646034,-1874.06416438,0.00011,2]
[340175617,1728768646046,-588.94,0.00011,2]
[340175618,1728768646094,-271.64597123,0.00010973,2]
[340175619,1728768646103,-471.70634037,0.00011,2]
[340175620,1728768646114,-7828.07686301,0.00011,2]
[340175621,1728768646156,-812.74759037,0.00011,2]
[340175622,1728768646166,-603.28558204,0.00011,2]
[340175623,1728768646177,-3929.113636,0.00011,2]
[340175624,1728768646188,-11728.4416875,0.00011,2]
[340175625,1728768646199,-551.28486,0.00011,2]
[340175626,1728768646226,-6325.15,0.00011,2]
[340175627,1728768646237,-734.01641473,0.00011,2]
[340175628,1728768646248,-943.31862009,0.00011,2]
[340175629,1728768646260,-1655.22506151,0.00011,2]
[340175660,1728768711958,152.0,0.00011581,3]
[340175661,1728768824193,280.64,0.00010225,2]
[340175662,1728768827904,431.16,8.307e-05,2]
[340175663,1728768877900,239.44,0.00010206,2]
[340175664,1728768934985,1000.0,0.00010206,2]
[340175665,1728769355022,150.94,0.00010225,2]
[340175666,1728769363718,182.41,0.00010225,2]
[340175667,1728769388340,250.0,0.00010225,2]
[340175668,1728769424519,409.6,8.58e-05,2]
[340175669,1728769527665,250.0,0.00010224,2]
[340175672,1728769591311,23880.0,0.00010216,2]
[340175673,1728769612904,1000.0,0.00010199,2]
[340175885,1728769832064,-282.57,0.00010317,2]
[340175887,1728769832074,-157.73970547,0.00010417,2]
[340175889,1728769832083,-184.7,0.00010498,2]
[340175891,1728769832093,-409.6,0.00010844,2]
[340175893,1728769832102,-150.0,0.00010899,2]
[340175895,1728769832111,-300.0,0.00010899,2]
[340175897,1728769832120,-373.9769654,0.000109,2]
[340175900,1728769832145,-2250.77499616,0.000109,2]
[340175905,1728769832183,-13141.33023844,0.000109,2]
[340175907,1728769832193,-1716.93326061,0.000109,2]
[340175909,1728769832202,-158.55,0.00010959,2]
[340175911,1728769832211,-226.78,0.00010959,2]
[340175913,1728769832221,-202.87,0.00010959,2]
[340175915,1728769832230,-216.36,0.00010959,2]
[340175917,1728769832239,-2974.9043694,0.00010995,2]
[340175919,1728769832249,-5920.7330656,0.00010995,2]
[340175921,1728769832258,-787.7898552,0.00010995,2]
[340175923,1728769832267,-150.01,0.00010999,2]
[340175925,1728769832276,-499.99,0.00011,2]
[340175927,1728769832286,-126247.0696476,0.00011,2]
[340175929,1728769832295,-268957.88995051,0.00011,2]
[340175930,1728769832314,-610.96308644,0.00011,2]
[340175931,1728769832324,-5630.98715691,0.00011,2]
[340175932,1728769832336,-3213.773173,0.00011,2]
[340175950,1728769838276,-1438.29969252,0.00011,2]
[340175951,1728769838337,-20084.97053767,0.00011,2]
[340175952,1728769838448,-627.3248374,0.00011,2]
[340175953,1728769838507,-1407.12373208,0.00011,2]
[340175954,1728769838518,-544.38170658,0.00011,2]
[340175955,1728769838565,-33638.66504613,0.00011,2]
[340175956,1728769838576,-907.675,0.00011,2]
[340175983,1728769840286,-99504.42340781,0.00011,2]
[340175984,1728769840357,-1432.08726682,0.00011,2]
[340175985,1728769840371,-1899.83196943,0.00011,2]
[340175999,1728769843253,-96203.84,0.00011,2]
[340176013,1728769846285,-2410.3115751,0.00010995,2]
[340176014,1728769846295,-1492.08542416,0.00011,2]
[340176015,1728769846343,-6246.29304,0.00011,2]
[340176016,1728769846456,-10017.05453858,0.00011,2]
[340176018,1728769921919,399.95,8.594e-05,2]
[340176019,1728770062477,158.61,0.00010215,2]
[340176020,1728770119174,250.0,0.0001021,2]
[340176021,1728770131181,200.0,0.0001021,2]
[340176022,1728770147610,184.7,0.0001021,2]
[340176023,1728770411858,159.02,0.00010214,2]
[340176024,1728770434671,200.0,0.00010196,2]
[340176025,1728770452707,224.51,0.00010196,2]
[340176026,1728770493276,379.95,8.261e-05,2]
[340176027,1728770513855,200.0,0.00010143,2]
[340176028,1728770633995,793.0,0.00010215,2]
[340176029,1728770641018,840.0,0.00010215,2]
[340176030,1728770697866,250.0,0.00010215,2]
[340176031,1728770714247,11815.09,0.00010201,2]
[340176034,1728770794039,1556.5,0.00010235,2]
[340176230,1728771027421,380.0,8.585e-05,2]
[340176234,1728771032311,-179.56,0.00010512,2]
[340176235,1728771032321,-104.92168963,0.00010849,2]
[340176236,1728771032373,-275.07831037,0.00010849,2]
[340176237,1728771032382,-150.0,0.00010899,2]
[340176238,1728771032392,-300.0,0.00010899,2]
[340176239,1728771032401,-1250.0,0.000109,2]
[340176240,1728771032410,-1250.0,0.000109,2]
[340176241,1728771032419,-1975.12308429,0.000109,2]
[340176242,1728771032429,-1000.0,0.000109,2]
[340176243,1728771032438,-22173.71346467,0.000109,2]
[340176244,1728771032447,-155.68,0.00010959,2]
[340176245,1728771032456,-158.9,0.00010959,2]
[340176246,1728771032466,-1500.0,0.00010959,2]
[340176247,1728771032475,-250.0,0.00010959,2]
[340176248,1728771032484,-245.99,0.00010959,2]
[340176249,1728771032493,-3670.1693709,0.00010995,2]
[340176250,1728771032503,-640.6125667,0.00010995,2]
[340176251,1728771032512,-1292.8495536,0.00010995,2]
[340176252,1728771032521,-9197.5232298,0.00010995,2]
[340176253,1728771032531,-166.80647998,0.00010997,2]
[340176254,1728771032541,-150.01,0.00010999,2]
[340176255,1728771032550,-150.99,0.00010999,2]
[340176256,1728771032560,-499.99,0.00010999,2]
[340176258,1728771032568,-499.99,0.00011,2]
[340176260,1728771032578,-117030.30501749,0.00011,2]
[340176262,1728771032587,-251044.91180367,0.00011,2]
[340176263,1728771032600,-13885.78964692,0.00011,2]
[340176265,1728771032612,-1287.62195801,0.00011,2]
[340176268,1728771032623,-15676.5,0.00011,2]
[340176270,1728771032638,-69539.16308511,0.00011,2]
[340176293,1728771038442,-1037.56354536,0.00011,2]
[340176452,1728771040600,-6738.1986,0.000109,2]
[340176454,1728771040610,-9069.59444281,0.00011,2]
[340176456,1728771040622,-5244.58188863,0.00011,2]
[340176457,1728771040632,-421.66372381,0.00011,2]
[340176460,1728771040643,-300.0,0.00011,2]
[340176462,1728771040654,-1939.74191545,0.00011,2]
[340176464,1728771040665,-1988.02165505,0.00011,2]
[340176466,1728771040683,-594.39655094,0.00011,2]
[340176469,1728771040699,-126919.10995733,0.00011,2]
[340176596,1728771043380,-2500.0,0.000109,2]
[340176597,1728771043391,-2178923.48980511,0.00011,2]
[340176598,1728771043404,-532663.31665461,0.00011,2]
[340176599,1728771043416,-133903.54419115,0.00011,2]
[340176600,1728771043437,-500.57827625,0.00011,2]
[340176603,1728771043660,-415.3499995,0.00011,2]
[340176613,1728771046303,-2008.43148739,0.00011,2]
[340176614,1728771046364,-30303.39072388,0.00011,2]
[340176615,1728771046376,-347.11886496,0.00011,2]
[340176626,1728771147737,328.0,0.00010197,2]
[340176627,1728771155488,241.5,0.00010181,2]
[340176628,1728771187967,250.0,0.00010159,2]
[340176629,1728771236992,250.0,0.00010175,2]
[340176630,1728771576832,370.68,8.219e-05,2]
[340176631,1728771648780,737.6,0.00010087,2]
[340176632,1728771662118,200.0,0.00010106,2]
[340176633,1728771694016,158.61,0.00010068,2]
[340176634,1728771697836,198.1,0.00010087,2]
[340176650,1728772105125,368.8,8.219e-05,2]
[340176749,1728772160773,409.92,0.00010073,2]
[340176793,1728772193680,179.6,0.00010111,2]
[340176801,1728772231425,-1473.28164196,0.00010325,2]
[340176803,1728772231435,-309.92577261,0.00010381,2]
[340176805,1728772231447,-404.65252093,0.00010381,2]
[340176807,1728772231457,-174.52,0.00010425,2]
[340176808,1728772231467,-2495.0,0.00010458,2]
[340176809,1728772231477,-368.8,0.00010481,2]
[340176810,1728772231487,-150.0,0.00010799,2]
[340176811,1728772231496,-78763.0879,0.000108,2]
[340176812,1728772231506,-8487.1344,0.000108,2]
[340176813,1728772231516,-1596.2983,0.000108,2]
[340176814,1728772231526,-226.1768,0.000108,2]
[340176815,1728772231535,-1465.9185,0.000108,2]
[340176816,1728772231546,-500.0,0.00010873,2]
[340176817,1728772231555,-187.79168442,0.00010899,2]
[340176818,1728772231565,-187.79168442,0.00010899,2]
[340176819,1728772231575,-187.79168442,0.00010899,2]
[340176820,1728772231584,-187.79168442,0.00010899,2]
[340176821,1728772231594,-187.79168442,0.00010899,2]
[340176822,1728772231604,-187.79168442,0.00010899,2]
[340176823,1728772231613,-187.79168442,0.00010899,2]
[340176824,1728772231623,-187.79168442,0.00010899,2]
[340176825,1728772231633,-187.79168442,0.00010899,2]
[340176826,1728772231643,-10305.5260095,0.00010899,2]
[340176827,1728772231652,-4899.9963,0.000109,2]
[340176828,1728772231662,-499.99,0.000109,2]
[340176829,1728772231672,-252.84,0.000109,2]
[340176830,1728772231681,-6053.3136,0.000109,2]
[340176831,1728772231691,-626.28708165,0.000109,2]
[340176832,1728772231701,-979.244766,0.000109,2]
[340176833,1728772231710,-98568.7882,0.000109,2]
[340176834,1728772231719,-5513.4101,0.000109,2]
[340176835,1728772231728,-39108.3858443,0.000109,2]
[340176836,1728772231744,-24381.9012557,0.000109,2]
[340176837,1728772231753,-7944.6916,0.000109,2]
[340176838,1728772231763,-500.0,0.000109,2]
[340176839,1728772231772,-263.52,0.000109,2]
[340176841,1728772231781,-424.05,0.000109,2]
[340176843,1728772231791,-150.0,0.000109,2]
[340176844,1728772231800,-534.81,0.000109,2]
[340176846,1728772231809,-534.81,0.000109,2]
[340176848,1728772231819,-150.0,0.000109,2]